[Event "Irish International Open 2019"]
[Site "Dublin"]
[Date "2019.04.18"]
[Round "3.22"]
[White "Opseth, Oliver"]
[Black "Kersten, Julian"]
[Result "1-0"]
[ECO "D02"]
[WhiteElo "1739"]
[BlackElo "1996"]
[Annotator "NA"]
[PlyCount "69"]
[EventDate "2019.02.28"]
[EventType "swiss"]
[EventCountry "IRL"]
[SourceTitle "playchess.com"]
[Source "ChessBase"]
[SourceQuality "1"]
[TimeControl "5400+30"]

1. d4 {[%emt 0:00:00]} Nf6 {[%emt 0:01:48]} 2. Bf4 {[%emt 0:00:00]} g6 {[%emt 0:00:30]} 3. e3 {[%emt 0:00:00]} Bg7 {[%emt 0:00:24]} 4. Bd3 {[%emt 0:01:14]} c5 {[%emt 0:00:58]} 5. c3 {[%emt 0:00:42]} O-O {[%emt 0:02:31]} 6. Nf3 {[%emt 0:03:38]} d5 {[%emt 0:02:20]} 7. O-O {[%emt 0:01:10]} b6 {[%emt 0:02:53]} 8. Nbd2 {[%emt 0:03:52]} Bb7 {[%emt 0:00:34]} 9. Qe2 {[%emt 0:02:02]} Nbd7 {[%emt 0:05:55]} 10. Rfe1 {[%emt 0:04:52]} h6 {[%emt 0:02:22]} 11. Rad1 {[%emt 0:06:26]} Nh5 {[%emt 0:07:43]} 12. Ne5 {[%emt 0:04:46]} Nxe5 {[%emt 0:02:26]} 13. Bxe5 {[%emt 0:00:35]} Bxe5 {[%emt 0:03:35]} 14. dxe5 {[%emt 0:00:04]} Ng7 {[%emt 0:03:08]} 15. c4 {[%emt 0:05:55]} Qc7 {[%emt 0:11:42]} 16. f4 {[%emt 0:02:35]} Rad8 {[%emt 0:01:13]} 17. Qg4 {[%emt 0:04:41]} Bc8 {[%emt 0:03:45]} 18. Qg3 {[%emt 0:01:07]} Nf5 {[%emt 0:03:00]} 19. Bxf5 {[%emt 0:01:33]} Bxf5 {[%emt 0:00:03]} 20. cxd5 {[%emt 0:00:26]} Rxd5 {[%emt 0:05:58]} 21. e4 {[%emt 0:01:26]} Bxe4 {[%emt 0:00:12]} 22. Nxe4 {[%emt 0:00:45]} Rxd1 {[%emt 0:00:42]} 23. Rxd1 {[%emt 0:00:03]} Qc6 {[%emt 0:00:24]} 24. Qf3 {[%emt 0:01:10]} Qa4 {[%emt 0:00:26]} 25. Nc3 {[%emt 0:02:12]} Qb4 {[%emt 0:00:46]} 26. Nd5 {[%emt 0:00:18]} Qxb2 {[%emt 0:00:30]} 27. Nxe7+ {[%emt 0:00:08]} Kg7 {[%emt 0:01:54]} 28. Qc6 {[%emt 0:01:31]} Qe2 {[%emt 0:07:33]} 29. Qf6+ {[%emt 0:00:08]} Kh7 {[%emt 0:00:08]} 30. Rf1 {[%emt 0:00:13]} Qe3+ {[%emt 0:02:51]} 31. Kh1 {[%emt 0:00:09]} Qd3 {[%emt 0:01:44]} 32. Rg1 {[%emt 0:00:20]} Qd8 {[%emt 0:01:22]} 33. e6 {[%emt 0:04:12]} Qd6 {[%emt 0:03:37]} 34. f5 {[%emt 0:00:11]} g5 {[%emt 0:00:55]} 35. Ng6 {[%emt 0:02:58]} 1-0

[Event "Irish International Open 2019"]
[Site "Dublin"]
[Date "2019.04.18"]
[Round "3.23"]
[White "Reprun, Nadejda"]
[Black "Boyle, Bernard"]
[Result "1/2-1/2"]
[ECO "C11"]
[WhiteElo "1995"]
[BlackElo "1799"]
[Annotator "NA"]
[PlyCount "35"]
[EventDate "2019.02.28"]
[EventType "swiss"]
[EventCountry "IRL"]
[SourceTitle "playchess.com"]
[Source "ChessBase"]
[SourceQuality "1"]
[TimeControl "5400+30"]

1. e4 {[%emt 0:00:00]} e6 {[%emt 0:00:00]} 2. d4 {[%emt 0:00:00]} d5 {[%emt 0:00:00]} 3. Nd2 {[%emt 0:00:00]} Nf6 {[%emt 0:00:52]} 4. e5 {[%emt 0:00:00]} Ne4 {[%emt 0:00:33]} 5. Nxe4 {[%emt 0:07:07]} dxe4 {[%emt 0:00:06]} 6. Be3 {[%emt 0:00:20]} c5 {[%emt 0:00:45]} 7. dxc5 {[%emt 0:04:45]} Nd7 {[%emt 0:01:41]} 8. c3 {[%emt 0:08:44]} Qc7 {[%emt 0:16:36]} 9. Qa4 {[%emt 0:03:08]} Bxc5 {[%emt 0:02:03]} 10. Qxe4 {[%emt 0:03:20]} Bxe3 {[%emt 0:00:48]} 11. Qxe3 {[%emt 0:00:07]} Qxe5 {[%emt 0:01:28]} 12. Qxe5 {[%emt 0:00:14]} Nxe5 {[%emt 0:00:06]} 13. Bb5+ {[%emt 0:01:13]} Bd7 {[%emt 0:00:32]} 14. Bxd7+ {[%emt 0:00:22]} Kxd7 {[%emt 0:00:45]} 15. O-O-O+ {[%emt 0:05:55]} Kc6 {[%emt 0:00:42]} 16. Ne2 {[%emt 0:03:05]} Rad8 {[%emt 0:00:51]} 17. Nd4+ {[%emt 0:02:37]} Kb6 {[%emt 0:02:21]} 18. Rhe1 {[%emt 0:04:39]} 1/2-1/2

[Event "Irish International Open 2019"]
[Site "Dublin"]
[Date "2019.04.18"]
[Round "3.24"]
[White "Phelan, Leo"]
[Black "Fox, Anthony"]
[Result "1/2-1/2"]
[ECO "C55"]
[WhiteElo "1708"]
[BlackElo "2031"]
[Annotator "NA"]
[PlyCount "134"]
[EventDate "2019.02.28"]
[EventType "swiss"]
[EventCountry "IRL"]
[SourceTitle "playchess.com"]
[Source "ChessBase"]
[SourceQuality "1"]
[TimeControl "5400+30"]

1. e4 {[%emt 0:00:00]} e5 {[%emt 0:00:00]} 2. Nf3 {[%emt 0:00:00]} Nc6 {[%emt 0:00:00]} 3. Bc4 {[%emt 0:00:00]} Nf6 {[%emt 0:00:12]} 4. d3 {[%emt 0:00:00]} Be7 {[%emt 0:00:16]} 5. O-O {[%emt 0:00:00]} O-O {[%emt 0:00:16]} 6. Re1 {[%emt 0:00:00]} d6 {[%emt 0:00:15]} 7. a4 {[%emt 0:00:00]} Be6 {[%emt 0:01:07]} 8. Nbd2 {[%emt 0:01:30]} Qd7 {[%emt 0:01:19]} 9. h3 {[%emt 0:04:34]} Rfe8 {[%emt 0:04:45]} 10. Ng5 {[%emt 0:02:36]} Bxc4 {[%emt 0:05:57]} 11. Nxc4 {[%emt 0:00:27]} h6 {[%emt 0:02:44]} 12. Nf3 {[%emt 0:00:08]} Bf8 {[%emt 0:00:47]} 13. Nh2 {[%emt 0:05:53]} Rad8 {[%emt 0:07:30]} 14. Ng4 {[%emt 0:10:14]} Nxg4 {[%emt 0:00:33]} 15. Qxg4 {[%emt 0:00:18]} Qxg4 {[%emt 0:01:31]} 16. hxg4 {[%emt 0:00:08]} Nd4 {[%emt 0:01:33]} 17. Ne3 {[%emt 0:00:16]} c6 {[%emt 0:00:30]} 18. Bd2 {[%emt 0:06:06]} g6 {[%emt 0:04:04]} 19. Rab1 {[%emt 0:05:42]} Bg7 {[%emt 0:03:06]} 20. b4 {[%emt 0:03:16]} d5 {[%emt 0:01:15]} 21. Bc3 {[%emt 0:02:49]} Ne6 {[%emt 0:00:49]} 22. Bb2 {[%emt 0:03:26]} a6 {[%emt 0:06:27]} 23. Rbd1 {[%emt 0:05:10]} b5 {[%emt 0:00:58]} 24. Ra1 {[%emt 0:05:36]} d4 {[%emt 0:06:24]} 25. Nf1 {[%emt 0:01:27]} Rb8 {[%emt 0:02:05]} 26. axb5 {[%emt 0:01:34]} axb5 {[%emt 0:00:10]} 27. Nd2 {[%emt 0:05:26]} c5 {[%emt 0:00:44]} 28. Ba3 {[%emt 0:00:56]} Rec8 {[%emt 0:00:50]} 29. Ra2 {[%emt 0:01:37]} c4 {[%emt 0:00:17]} 30. dxc4 {[%emt 0:01:55]} bxc4 {[%emt 0:00:09]} 31. Rb1 {[%emt 0:00:50]} Rb5 {[%emt 0:05:37]} 32. Bc1 {[%emt 0:03:31]} c3 {[%emt 0:03:53]} 33. Nf1 {[%emt 0:02:37]} Rcb8 {[%emt 0:00:24]} 34. Ba3 {[%emt 0:01:45]} Nd8 {[%emt 0:02:01]} 35. Nh2 {[%emt 0:01:01]} Nc6 {[%emt 0:00:13]} 36. Nf3 {[%emt 0:00:14]} Nxb4 {[%emt 0:03:13]} 37. Bxb4 {[%emt 0:00:12]} Rxb4 {[%emt 0:00:07]} 38. Rxb4 {[%emt 0:00:04]} Rxb4 {[%emt 0:00:06]} 39. Ne1 {[%emt 0:00:35]} Rb1 {[%emt 0:01:09]} 40. Kf1 {[%emt 0:00:06]} Bf6 {[%emt 0:05:22]} 41. Ke2 {[%emt 0:00:25]} Kg7 {[%emt 0:00:52]} 42. Nd3 {[%emt 0:00:18]} Rb5 {[%emt 0:00:53]} 43. Ra7 {[%emt 0:01:10]} Bg5 {[%emt 0:04:28]} 44. Ra1 {[%emt 0:01:22]} Be7 {[%emt 0:01:01]} 45. Kf3 {[%emt 0:02:59]} Bd6 {[%emt 0:01:31]} 46. Ke2 {[%emt 0:01:54]} Bc7 {[%emt 0:01:53]} 47. Ra7 {[%emt 0:03:08]} Bd6 {[%emt 0:00:39]} 48. Ra1 {[%emt 0:00:11]} Rb6 {[%emt 0:00:20]} 49. Kf3 {[%emt 0:01:50]} Kf6 {[%emt 0:00:31]} 50. Ra7 {[%emt 0:01:23]} Ke6 {[%emt 0:00:32]} 51. Ke2 {[%emt 0:01:56]} Rc6 {[%emt 0:02:28]} 52. Ra5 {[%emt 0:00:44]} Rb6 {[%emt 0:01:00]} 53. Kd1 {[%emt 0:00:52]} Rb1+ {[%emt 0:04:46]} 54. Ke2 {[%emt 0:00:13]} Rb6 {[%emt 0:02:07]} 55. Kd1 {[%emt 0:00:25]} f6 {[%emt 0:00:59]} 56. Ke2 {[%emt 0:01:21]} Rb7 {[%emt 0:00:13]} 57. Ra6 {[%emt 0:00:46]} Ke7 {[%emt 0:00:19]} 58. Kd1 {[%emt 0:00:43]} Rc7 {[%emt 0:00:47]} 59. Ke2 {[%emt 0:00:42]} Rd7 {[%emt 0:00:10]} 60. Ra8 {[%emt 0:00:37]} Kf7 {[%emt 0:01:19]} 61. Ra6 {[%emt 0:00:11]} Kg7 {[%emt 0:00:28]} 62. Kf3 {[%emt 0:00:52]} h5 {[%emt 0:02:13]} 63. gxh5 {[%emt 0:00:41]} gxh5 {[%emt 0:00:04]} 64. Ra5 {[%emt 0:00:59]} Rb7 {[%emt 0:00:43]} 65. Ra6 {[%emt 0:00:49]} Be7 {[%emt 0:00:24]} 66. Ra1 {[%emt 0:00:11]} Kg6 {[%emt 0:00:11]} 67. Ra8 {[%emt 0:00:35]} Kg7 {[%emt 0:00:45]} 1/2-1/2

[Event "Irish International Open 2019"]
[Site "Dublin"]
[Date "2019.04.18"]
[Round "3.25"]
[White "Flynn, Jacob"]
[Black "Jocius, Donatas"]
[Result "0-1"]
[ECO "D90"]
[WhiteElo "2011"]
[BlackElo "1773"]
[Annotator "NA"]
[PlyCount "154"]
[EventDate "2019.02.28"]
[EventType "swiss"]
[EventCountry "IRL"]
[SourceTitle "playchess.com"]
[Source "ChessBase"]
[SourceQuality "1"]
[TimeControl "5400+30"]

1. d4 {[%emt 0:00:00]} c6 {[%emt 0:00:00]} 2. c4 {[%emt 0:02:56]} Nf6 {[%emt 0:00:05]} 3. Nc3 {[%emt 0:00:14]} d5 {[%emt 0:00:14]} 4. Nf3 {[%emt 0:00:04]} g6 {[%emt 0:04:25]} 5. cxd5 {[%emt 0:01:09]} cxd5 {[%emt 0:00:36]} 6. Bf4 {[%emt 0:00:04]} a6 {[%emt 0:00:44]} 7. e3 {[%emt 0:01:33]} Bg7 {[%emt 0:01:29]} 8. h3 {[%emt 0:01:15]} O-O {[%emt 0:01:34]} 9. Be2 {[%emt 0:02:01]} Qb6 {[%emt 0:00:56]} 10. a3 {[%emt 0:01:44]} Bd7 {[%emt 0:02:10]} 11. b4 {[%emt 0:08:04]} Rc8 {[%emt 0:01:50]} 12. Qb3 {[%emt 0:09:23]} Qc6 {[%emt 0:08:05]} 13. Rc1 {[%emt 0:04:19]} Ne4 {[%emt 0:01:12]} 14. Na2 {[%emt 0:00:58]} Qe6 {[%emt 0:00:50]} 15. Rxc8+ {[%emt 0:03:42]} Bxc8 {[%emt 0:00:09]} 16. Ne5 {[%emt 0:08:49]} Nd7 {[%emt 0:04:47]} 17. Nd3 {[%emt 0:06:52]} b6 {[%emt 0:01:07]} 18. Nc3 {[%emt 0:10:36]} Nxc3 {[%emt 0:01:57]} 19. Qxc3 {[%emt 0:00:01]} Bb7 {[%emt 0:00:35]} 20. O-O {[%emt 0:02:29]} Rc8 {[%emt 0:00:44]} 21. Qb2 {[%emt 0:01:23]} Nf6 {[%emt 0:03:04]} 22. Rc1 {[%emt 0:06:54]} Ne4 {[%emt 0:02:57]} 23. Ne5 {[%emt 0:00:39]} Rxc1+ {[%emt 0:02:41]} 24. Qxc1 {[%emt 0:00:01]} Qc8 {[%emt 0:00:47]} 25. Qxc8+ {[%emt 0:00:32]} Bxc8 {[%emt 0:00:03]} 26. f3 {[%emt 0:04:24]} Bxe5 {[%emt 0:02:05]} 27. Bxe5 {[%emt 0:00:34]} Nc3 {[%emt 0:00:29]} 28. Bd3 {[%emt 0:00:46]} f6 {[%emt 0:00:51]} 29. Bg3 {[%emt 0:01:23]} b5 {[%emt 0:01:37]} 30. Kf2 {[%emt 0:01:21]} Bf5 {[%emt 0:01:51]} 31. Bf1 {[%emt 0:08:31]} Bc2 {[%emt 0:01:41]} 32. Ke1 {[%emt 0:01:35]} Nb1 {[%emt 0:00:10]} 33. Be2 {[%emt 0:02:29]} Nxa3 {[%emt 0:01:04]} 34. Kd2 {[%emt 0:00:01]} Bf5 {[%emt 0:00:46]} 35. Kc3 {[%emt 0:02:13]} Nb1+ {[%emt 0:01:54]} 36. Kb2 {[%emt 0:00:07]} Nd2 {[%emt 0:00:23]} 37. Be1 {[%emt 0:00:20]} Nc4+ {[%emt 0:00:48]} 38. Bxc4 {[%emt 0:00:07]} bxc4 {[%emt 0:00:57]} 39. g4 {[%emt 0:02:09]} Bd3 {[%emt 0:00:47]} 40. Ka3 {[%emt 0:01:36]} Bc2 {[%emt 0:00:11]} 41. b5 {[%emt 0:00:15]} axb5 {[%emt 0:00:14]} 42. Kb4 {[%emt 0:00:00]} Bd1 {[%emt 0:03:37]} 43. f4 {[%emt 0:02:23]} g5 {[%emt 0:01:28]} 44. Kxb5 {[%emt 0:05:06]} Bf3 {[%emt 0:00:52]} 45. Kc6 {[%emt 0:00:52]} Kf7 {[%emt 0:00:48]} 46. h4 {[%emt 0:00:08]} gxh4 {[%emt 0:00:53]} 47. Bxh4 {[%emt 0:00:01]} c3 {[%emt 0:00:28]} 48. Be1 {[%emt 0:00:01]} c2 {[%emt 0:00:09]} 49. Bd2 {[%emt 0:00:00]} e6 {[%emt 0:00:42]} 50. g5 {[%emt 0:00:30]} fxg5 {[%emt 0:00:36]} 51. fxg5 {[%emt 0:00:01]} Kg6 {[%emt 0:01:00]} 52. e4 {[%emt 0:00:15]} Bxe4 {[%emt 0:00:37]} 53. Kc5 {[%emt 0:01:23]} Kf5 {[%emt 0:00:18]} 54. Kb4 {[%emt 0:00:18]} Kg4 {[%emt 0:00:30]} 55. Kc3 {[%emt 0:00:09]} Kf3 {[%emt 0:00:22]} 56. Kb2 {[%emt 0:01:11]} Bd3 {[%emt 0:00:59]} 57. Kc1 {[%emt 0:01:19]} Ke4 {[%emt 0:00:46]} 58. Bc3 {[%emt 0:00:00]} Kf5 {[%emt 0:02:03]} 59. Bd2 {[%emt 0:00:02]} Kg4 {[%emt 0:01:48]} 60. Be3 {[%emt 0:00:15]} Bf5 {[%emt 0:01:04]} 61. Kd2 {[%emt 0:00:44]} Kf3 {[%emt 0:00:30]} 62. Bg1 {[%emt 0:00:11]} Ke4 {[%emt 0:01:20]} 63. Bf2 {[%emt 0:00:46]} Kf3 {[%emt 0:00:18]} 64. Bg1 {[%emt 0:00:09]} Bd3 {[%emt 0:01:13]} 65. Kc1 {[%emt 0:01:00]} Kf4 {[%emt 0:00:22]} 66. Kd2 {[%emt 0:00:12]} c1=Q+ {[%emt 0:00:54]} 67. Kxc1 {[%emt 0:00:01]} Kxg5 {[%emt 0:00:11]} 68. Kd2 {[%emt 0:00:25]} Be4 {[%emt 0:00:53]} 69. Ke2 {[%emt 0:01:17]} Kf5 {[%emt 0:00:12]} 70. Kf2 {[%emt 0:00:29]} e5 {[%emt 0:00:16]} 71. Kg3 {[%emt 0:00:43]} h5 {[%emt 0:00:27]} 72. Kh4 {[%emt 0:00:37]} Bf3 {[%emt 0:01:15]} 73. Kg3 {[%emt 0:00:24]} Bd1 {[%emt 0:00:32]} 74. dxe5 {[%emt 0:01:45]} Kxe5 {[%emt 0:00:07]} 75. Kf2 {[%emt 0:00:11]} Ke4 {[%emt 0:00:18]} 76. Ke1 {[%emt 0:00:21]} Ba4 {[%emt 0:00:24]} 77. Ke2 {[%emt 0:00:38]} h4 {[%emt 0:41:29]} 0-1

[Event "Irish International Open 2019"]
[Site "Dublin"]
[Date "2019.04.18"]
[Round "3.26"]
[White "Farrelly, Eoin"]
[Black "Mulligan, Scott"]
[Result "1/2-1/2"]
[ECO "E81"]
[WhiteElo "1644"]
[BlackElo "2006"]
[Annotator "NA"]
[PlyCount "102"]
[EventDate "2019.02.28"]
[EventType "swiss"]
[EventCountry "IRL"]
[SourceTitle "playchess.com"]
[Source "ChessBase"]
[SourceQuality "1"]
[TimeControl "5400+30"]

1. d4 {[%emt 0:00:00]} Nf6 {[%emt 0:00:00]} 2. c4 {[%emt 0:00:00]} g6 {[%emt 0:00:00]} 3. Nc3 {[%emt 0:00:00]} Bg7 {[%emt 0:00:30]} 4. e4 {[%emt 0:00:28]} O-O {[%emt 0:00:05]} 5. Be3 {[%emt 0:02:14]} d6 {[%emt 0:00:04]} 6. f3 {[%emt 0:00:49]} Nbd7 {[%emt 0:06:17]} 7. Nh3 {[%emt 0:03:15]} c6 {[%emt 0:03:31]} 8. Be2 {[%emt 0:05:39]} a6 {[%emt 0:06:08]} 9. a4 {[%emt 0:00:22]} Rb8 {[%emt 0:11:26]} 10. O-O {[%emt 0:00:52]} e5 {[%emt 0:01:54]} 11. d5 {[%emt 0:00:38]} c5 {[%emt 0:00:39]} 12. Qd2 {[%emt 0:05:18]} Ne8 {[%emt 0:07:48]} 13. Rfb1 {[%emt 0:08:58]} a5 {[%emt 0:10:34]} 14. Nb5 {[%emt 0:04:33]} Ra8 {[%emt 0:12:12]} 15. Rf1 {[%emt 0:03:04]} Ndf6 {[%emt 0:03:21]} 16. Nf2 {[%emt 0:01:17]} Nc7 {[%emt 0:02:05]} 17. Bg5 {[%emt 0:08:46]} Nxb5 {[%emt 0:03:26]} 18. axb5 {[%emt 0:00:10]} Qc7 {[%emt 0:00:03]} 19. Qe3 {[%emt 0:04:29]} Kh8 {[%emt 0:02:15]} 20. Ng4 {[%emt 0:00:57]} Ng8 {[%emt 0:05:16]} 21. h3 {[%emt 0:10:28]} f6 {[%emt 0:04:32]} 22. Bh4 {[%emt 0:00:52]} h5 {[%emt 0:02:26]} 23. Nh2 {[%emt 0:00:49]} Bh6 {[%emt 0:01:05]} 24. Qc3 {[%emt 0:02:24]} Bf4 {[%emt 0:01:56]} 25. Bf2 {[%emt 0:02:00]} Bd7 {[%emt 0:01:43]} 26. g3 {[%emt 0:12:19]} Bh6 {[%emt 0:00:09]} 27. Kg2 {[%emt 0:00:25]} b6 {[%emt 0:02:11]} 28. g4 {[%emt 0:03:25]} f5 {[%emt 0:05:26]} 29. Be3 {[%emt 0:01:04]} hxg4 {[%emt 0:03:06]} 30. hxg4 {[%emt 0:00:42]} f4 {[%emt 0:01:08]} 31. Bf2 {[%emt 0:01:51]} Bg5 {[%emt 0:00:01]} 32. Rh1 {[%emt 0:01:01]} Kg7 {[%emt 0:01:21]} 33. Qe1 {[%emt 0:05:12]} Qd8 {[%emt 0:01:23]} 34. Nf1 {[%emt 0:00:26]} Be7 {[%emt 0:01:24]} 35. Nd2 {[%emt 0:00:46]} Nf6 {[%emt 0:00:29]} 36. Qg1 {[%emt 0:01:29]} Qc7 {[%emt 0:00:48]} 37. Bh4 {[%emt 0:00:38]} Rh8 {[%emt 0:00:20]} 38. Qf2 {[%emt 0:01:01]} Ng8 {[%emt 0:00:55]} 39. Bxe7 {[%emt 0:00:48]} Nxe7 {[%emt 0:01:33]} 40. Rxh8 {[%emt 0:00:12]} Rxh8 {[%emt 0:00:00]} 41. Rh1 {[%emt 0:00:15]} Qd8 {[%emt 0:00:00]} 42. b3 {[%emt 0:01:01]} g5 {[%emt 0:00:00]} 43. Qg1 {[%emt 0:01:15]} Ng6 {[%emt 0:00:00]} 44. Rxh8 {[%emt 0:00:08]} Qxh8 {[%emt 0:00:00]} 45. Qh2 {[%emt 0:00:30]} Nh4+ {[%emt 0:00:00]} 46. Kg1 {[%emt 0:00:38]} a4 {[%emt 0:00:00]} 47. bxa4 {[%emt 0:00:26]} Qa8 {[%emt 0:00:00]} 48. Bd1 {[%emt 0:00:39]} Qa5 {[%emt 0:00:00]} 49. Qe2 {[%emt 0:00:36]} Qc3 {[%emt 0:03:44]} 50. Kf2 {[%emt 0:00:25]} Qd4+ {[%emt 0:00:04]} 51. Kf1 {[%emt 0:02:05]} Qc3 {[%emt 0:00:46]} 1/2-1/2

[Event "Irish International Open 2019"]
[Site "Dublin"]
[Date "2019.04.18"]
[Round "3.27"]
[White "Schmitz, Andreas Arnold"]
[Black "Goss, Alex"]
[Result "1-0"]
[ECO "C01"]
[WhiteElo "2003"]
[BlackElo "1765"]
[Annotator "NA"]
[PlyCount "51"]
[EventDate "2019.02.28"]
[EventType "swiss"]
[EventCountry "IRL"]
[SourceTitle "playchess.com"]
[Source "ChessBase"]
[SourceQuality "1"]
[TimeControl "5400+30"]

1. e4 {[%emt 0:00:00]} e6 {[%emt 0:00:00]} 2. d4 {[%emt 0:00:00]} d5 {[%emt 0:00:00]} 3. exd5 {[%emt 0:00:00]} exd5 {[%emt 0:00:00]} 4. Nf3 {[%emt 0:00:28]} Bd6 {[%emt 0:00:02]} 5. Be2 {[%emt 0:00:33]} Ne7 {[%emt 0:00:13]} 6. O-O {[%emt 0:00:22]} O-O {[%emt 0:00:05]} 7. b3 {[%emt 0:00:08]} Bf5 {[%emt 0:00:21]} 8. c4 {[%emt 0:00:31]} c6 {[%emt 0:00:07]} 9. Bd3 {[%emt 0:06:02]} Bxd3 {[%emt 0:03:58]} 10. Qxd3 {[%emt 0:00:08]} Nd7 {[%emt 0:00:41]} 11. Nc3 {[%emt 0:02:19]} Rc8 {[%emt 0:02:35]} 12. c5 {[%emt 0:01:16]} Bb8 {[%emt 0:00:22]} 13. b4 {[%emt 0:01:15]} b6 {[%emt 0:04:37]} 14. Bg5 {[%emt 0:01:36]} f6 {[%emt 0:01:11]} 15. Bh4 {[%emt 0:03:15]} Ng6 {[%emt 0:02:41]} 16. Bg3 {[%emt 0:00:23]} Bxg3 {[%emt 0:01:26]} 17. hxg3 {[%emt 0:00:18]} a5 {[%emt 0:00:33]} 18. a3 {[%emt 0:03:07]} Qc7 {[%emt 0:01:16]} 19. Rfe1 {[%emt 0:01:19]} Rfe8 {[%emt 0:00:39]} 20. Re2 {[%emt 0:01:16]} Kf7 {[%emt 0:01:48]} 21. Rae1 {[%emt 0:00:22]} axb4 {[%emt 0:02:22]} 22. axb4 {[%emt 0:00:23]} b5 {[%emt 0:00:56]} 23. Qf5 {[%emt 0:01:58]} Rxe2 {[%emt 0:02:48]} 24. Rxe2 {[%emt 0:00:26]} Ndf8 {[%emt 0:00:21]} 25. Nxb5 {[%emt 0:04:41]} Ne7 {[%emt 0:02:06]} 26. Qxc8 {[%emt 0:08:41]} 1-0

[Event "Irish International Open 2019"]
[Site "Dublin"]
[Date "2019.04.19"]
[Round "4.5"]
[White "Larino Nieto, David"]
[Black "Epishin, Vladimir"]
[Result "1-0"]
[ECO "A06"]
[WhiteElo "2434"]
[BlackElo "2568"]
[Annotator "ChessBase"]
[PlyCount "147"]
[EventDate "2019.02.28"]
[EventType "swiss"]
[EventCountry "IRL"]
[SourceTitle "playchess.com"]
[Source "ChessBase"]
[SourceQuality "1"]
[TimeControl "5400+30"]

1. Nf3 {[%emt 0:00:00]} d5 {[%emt 0:00:16]} 2. b3 {[%emt 0:00:00]} Bg4 {[%emt 0:01:44]} 3. Bb2 {[%emt 0:00:00]} Nd7 {[%emt 0:00:49]} 4. e3 {[%emt 0:01:07]} Ngf6 {[%emt 0:00:47]} 5. h3 {[%emt 0:00:31]} Bh5 {[%emt 0:02:09]} 6. d3 {[%emt 0:00:18]} e6 {[%emt 0:01:29]} 7. g4 {[%emt 0:00:29]} Bg6 {[%emt 0:00:02]} 8. Nh4 {[%emt 0:00:33]} Bb4+ {[%emt 0:01:24]} 9. Nd2 {[%emt 0:10:08]} e5 {[%emt 0:01:43]} 10. Bg2 {[%emt 0:02:34]} c6 {[%emt 0:00:17]} 11. a3 {[%emt 0:01:50]} Bc5 {[%emt 0:02:20]} 12. Qe2 {[%emt 0:09:28]} O-O {[%emt 0:02:16]} 13. Nxg6 {[%emt 0:04:31]} fxg6 {[%emt 0:00:14]} 14. c4 {[%emt 0:01:11]} d4 {[%emt 0:06:00]} 15. O-O {[%emt 0:12:50]} a5 {[%emt 0:01:38]} 16. exd4 {[%emt 0:06:41]} exd4 {[%emt 0:01:52]} 17. Nf3 {[%emt 0:00:20]} Qb6 {[%emt 0:02:54]} 18. b4 {[%emt 0:02:58]} axb4 {[%emt 0:00:29]} 19. axb4 {[%emt 0:00:02]} Rae8 {[%emt 0:06:53]} 20. Qc2 {[%emt 0:04:08]} Bxb4 {[%emt 0:00:19]} 21. Bxd4 {[%emt 0:00:36]} Bc5 {[%emt 0:03:40]} 22. Bc3 {[%emt 0:05:09]} Qc7 {[%emt 0:01:20]} 23. d4 {[%emt 0:03:43]} Bd6 {[%emt 0:00:23]} 24. Qb3 {[%emt 0:00:08]} c5 {[%emt 0:00:43]} 25. d5 {[%emt 0:03:50]} Ne4 {[%emt 0:02:48]} 26. Bb2 {[%emt 0:05:33]} Ne5 {[%emt 0:35:47]} 27. Bxe5 {[%emt 0:00:53]} Bxe5 {[%emt 0:00:05]} 28. Nxe5 {[%emt 0:00:18]} Qxe5 {[%emt 0:04:04]} 29. Bxe4 {[%emt 0:00:36]} Qxe4 {[%emt 0:00:06]} 30. Ra7 {[%emt 0:00:12]} Re7 {[%emt 0:06:37]} 31. Rxb7 {[%emt 0:01:14]} Rxb7 {[%emt 0:00:06]} 32. Qxb7 {[%emt 0:00:02]} Qxc4 {[%emt 0:00:14]} 33. d6 {[%emt 0:00:09]} Qd4 {[%emt 0:03:01]} 34. Qe7 {[%emt 0:07:29]} Qf6 {[%emt 0:02:41]} 35. Qc7 {[%emt 0:01:04]} Qe5 {[%emt 0:00:01]} 36. Rc1 {[%emt 0:01:42]} h5 {[%emt 0:00:25]} 37. Qxc5 {[%emt 0:00:48]} Qxc5 {[%emt 0:00:07]} 38. Rxc5 {[%emt 0:00:04]} Rd8 {[%emt 0:00:05]} 39. Rc6 {[%emt 0:01:15]} hxg4 {[%emt 0:00:10]} 40. hxg4 {[%emt 0:00:01]} Kf7 {[%emt 0:00:25]} 41. Kg2 {[%emt 0:01:16]} Ke6 {[%emt 0:02:36]} 42. d7+ {[%emt 0:07:19]} Kxd7 {[%emt 0:02:49]} 43. Rxg6 {[%emt 0:00:01]} Rg8 {[%emt 0:00:01]} 44. Kg3 {[%emt 0:01:05]} Ke7 {[%emt 0:00:03]} 45. f4 {[%emt 0:00:10]} Kf7 {[%emt 0:00:04]} 46. f5 {[%emt 0:00:05]} Ra8 {[%emt 0:00:11]} 47. Kh4 {[%emt 0:00:12]} Ra7 {[%emt 0:00:13]} 48. Kh5 {[%emt 0:00:22]} Rb7 {[%emt 0:01:18]} 49. Ra6 {[%emt 0:00:03]} Rb5 {[%emt 0:03:12]} 50. Kg5 {[%emt 0:01:08]} Rb4 {[%emt 0:00:31]} 51. Ra5 {[%emt 0:01:49]} Rb6 {[%emt 0:01:36]} 52. Ra7+ {[%emt 0:00:47]} Kg8 {[%emt 0:00:04]} 53. Re7 {[%emt 0:00:25]} Kf8 {[%emt 0:01:06]} 54. Re6 {[%emt 0:00:33]} Rb4 {[%emt 0:00:02]} 55. Kh5 {[%emt 0:00:38]} Rf4 {[%emt 0:00:24]} 56. Re5 {[%emt 0:01:19]} Kf7 {[%emt 0:01:31]} 57. Ra5 {[%emt 0:00:09]} Rb4 {[%emt 0:00:37]} 58. Ra7+ {[%emt 0:00:12]} Kf8 {[%emt 0:01:56]} 59. g5 {[%emt 0:00:18]} Rb6 {[%emt 0:00:27]} 60. Ra8+ {[%emt 0:00:38]} Ke7 {[%emt 0:00:32]} 61. Rc8 {[%emt 0:03:58]} Ra6 {[%emt 0:00:19]} 62. Rh8 {[%emt 0:01:39]} Rb6 {[%emt 0:01:21]} 63. Ra8 {[%emt 0:00:26]} Rc6 {[%emt 0:00:06]} 64. f6+ {[%emt 0:02:10]} gxf6 {[%emt 0:00:03]} 65. g6 {[%emt 0:00:01]} Rc1 {[%emt 0:00:08]} 66. g7 {[%emt 0:00:03]} Rh1+ {[%emt 0:00:10]} 67. Kg6 {[%emt 0:00:02]} Rg1+ {[%emt 0:00:04]} 68. Kh7 {[%emt 0:00:05]} Rh1+ {[%emt 0:00:04]} 69. Kg8 {[%emt 0:00:03]} f5 {[%emt 0:00:16]} 70. Ra7+ {[%emt 0:01:54]} Kf6 {[%emt 0:00:40]} 71. Kf8 {[%emt 0:00:27]} Rg1 {[%emt 0:00:02]} 72. g8=Q {[%emt 0:00:53]} Rxg8+ {[%emt 0:00:02]} 73. Kxg8 {[%emt 0:00:02]} f4 {[%emt 0:00:01]} 74. Ra5 {[%emt 0:00:22]} 1-0